Workbook

Sheet 三季度
A1: 保山电力腾冲分公司2024年三季度配电网接入能力公示表
A2: 序号 | B2: 设备名称（准确、完整描述配变名称） | C2: 电压等级(kV) | D2: 季度平均负载率（%） | E2: 最大负载率（%） | F2: 负载情况（轻载、重载、过载） | G2: 可开放容量(kVA) | H2: 是否接入受限（是/否） | I2: 覆盖区域（以“县区-乡镇或街道办-村委会或社区-村或小区”的地址层级进行公示）
A3: 1 | B3: BH-打苴社区-大寨台变 | C3: 10kV | D3: =VLOOKUP(B3,[1]sheet1!$B$1:$I$65536,8,FALSE) -> 26.57 | E3: =VLOOKUP(B3,[1]sheet1!$B$1:$G$65536,6,FALSE) -> 46.66 | F3: 轻载 | G3: 373.43 | H3: 否 | I3: 打苴社区
A4: 2 | B4: BH-打苴社区-邓家寨台变 | C4: 10kV | D4: =VLOOKUP(B4,[1]sheet1!$B$1:$I$65536,8,FALSE) -> 8.04 | E4: =VLOOKUP(B4,[1]sheet1!$B$1:$G$65536,6,FALSE) -> 18.48 | F4: 轻载 | G4: 241.96 | H4: 否 | I4: 打苴社区
A5: 3 | B5: BH-打苴社区-东山台变 | C5: 10kV | D5: =VLOOKUP(B5,[1]sheet1!$B$1:$I$65536,8,FALSE) -> 9.47 | E5: =VLOOKUP(B5,[1]sheet1!$B$1:$G$65536,6,FALSE) -> 21.51 | F5: 轻载 | G5: 390.53 | H5: 否 | I5: 打苴社区
A6: 4 | B6: BH-打苴社区-横寨台变 | C6: 10kV | D6: =VLOOKUP(B6,[1]sheet1!$B$1:$I$65536,8,FALSE) -> 9.32 | E6: =VLOOKUP(B6,[1]sheet1!$B$1:$G$65536,6,FALSE) -> 22.14 | F6: 轻载 | G6: 305.68 | H6: 否 | I6: 打苴社区
A7: 5 | B7: BH-打苴社区-李家寨台变 | C7: 10kV | D7: =VLOOKUP(B7,[1]sheet1!$B$1:$I$65536,8,FALSE) -> 5.9 | E7: =VLOOKUP(B7,[1]sheet1!$B$1:$G$65536,6,FALSE) -> 14.65 | F7: 轻载 | G7: 194.10 | H7: 否 | I7: 打苴社区
A8: 6 | B8: BH-打苴社区-龙桥头台变 | C8: 10kV | D8: =VLOOKUP(B8,[1]sheet1!$B$1:$I$65536,8,FALSE) -> 3.63 | E8: =VLOOKUP(B8,[1]sheet1!$B$1:$G$65536,6,FALSE) -> 11.41 | F8: 轻载 | G8: 76.37 | H8: 否 | I8: 打苴社区
A9: 7 | B9: BH-打苴社区-马家源台变 | C9: 10kV | D9: =VLOOKUP(B9,[1]sheet1!$B$1:$I$65536,8,FALSE) -> 6.26 | E9: =VLOOKUP(B9,[1]sheet1!$B$1:$G$65536,6,FALSE) -> 22.01 | F9: 轻载 | G9: 73.74 | H9: 否 | I9: 打苴社区
A10: 8 | B10: BH-打苴社区-孙家寨台变 | C10: 10kV | D10: =VLOOKUP(B10,[1]sheet1!$B$1:$I$65536,8,FALSE) -> 6.42 | E10: =VLOOKUP(B10,[1]sheet1!$B$1:$G$65536,6,FALSE) -> 17.42 | F10: 轻载 | G10: 118.58 | H10: 否 | I10: 打苴社区
A11: 9 | B11: BH-打苴社区-塘子河1#台变 | C11: 10kV | D11: =VLOOKUP(B11,[1]sheet1!$B$1:$I$65536,8,FALSE) -> 11.52 | E11: =VLOOKUP(B11,[1]sheet1!$B$1:$G$65536,6,FALSE) -> 25.78 | F11: 轻载 | G11: 113.48 | H11: 否 | I11: 打苴社区
A12: 10 | B12: BH-打苴社区-塘子河2#台变 | C12: 10kV | D12: =VLOOKUP(B12,[1]sheet1!$B$1:$I$65536,8,FALSE) -> 4.5 | E12: =VLOOKUP(B12,[1]sheet1!$B$1:$G$65536,6,FALSE) -> 25.97 | F12: 轻载 | G12: 45.50 | H12: 否 | I12: 打苴社区
A13: 11 | B13: BH-打苴社区-徐家湾番家寨台变 | C13: 10kV | D13: =VLOOKUP(B13,[1]sheet1!$B$1:$I$65536,8,FALSE) -> 5.63 | E13: =VLOOKUP(B13,[1]sheet1!$B$1:$G$65536,6,FALSE) -> 13.37 | F13: 轻载 | G13: 244.37 | H13: 否 | I13: 打苴社区
A14: 12 | B14: BH-打苴社区-杨家湾台变 | C14: 10kV | D14: =VLOOKUP(B14,[1]sheet1!$B$1:$I$65536,8,FALSE) -> 9.14 | E14: =VLOOKUP(B14,[1]sheet1!$B$1:$G$65536,6,FALSE) -> 13.65 | F14: 轻载 | G14: 190.86 | H14: 否 | I14: 打苴社区
A15: 13 | B15: BH-凤山社区-后屯台变 | C15: 10kV | D15: =VLOOKUP(B15,[1]sheet1!$B$1:$I$65536,8,FALSE) -> 9.56 | E15: =VLOOKUP(B15,[1]sheet1!$B$1:$G$65536,6,FALSE) -> 19.41 | F15: 轻载 | G15: 390.44 | H15: 否 | I15: 凤山社区
A16: 14 | B16: BH-凤山社区-沙帽山台变 | C16: 10kV | D16: =VLOOKUP(B16,[1]sheet1!$B$1:$I$65536,8,FALSE) -> 9.31 | E16: =VLOOKUP(B16,[1]sheet1!$B$1:$G$65536,6,FALSE) -> 30.07 | F16: 轻载 | G16: 90.69 | H16: 否 | I16: 凤山社区
A17: 15 | B17: BH-凤山社区-小尹家湾台变 | C17: 10kV | D17: =VLOOKUP(B17,[1]sheet1!$B$1:$I$65536,8,FALSE) -> 4.63 | E17: =VLOOKUP(B17,[1]sheet1!$B$1:$G$65536,6,FALSE) -> 9.96 | F17: 轻载 | G17: 155.37 | H17: 否 | I17: 凤山社区
A18: 16 | B18: BH-富裕社区-白寺台变 | C18: 10kV | D18: =VLOOKUP(B18,[1]sheet1!$B$1:$I$65536,8,FALSE) -> 7.52 | E18: =VLOOKUP(B18,[1]sheet1!$B$1:$G$65536,6,FALSE) -> 12.67 | F18: 轻载 | G18: 392.48 | H18: 否 | I18: 富裕社区
A19: 17 | B19: BH-富裕社区-大井台变 | C19: 10kV | D19: =VLOOKUP(B19,[1]sheet1!$B$1:$I$65536,8,FALSE) -> 7.31 | E19: =VLOOKUP(B19,[1]sheet1!$B$1:$G$65536,6,FALSE) -> 21.95 | F19: 轻载 | G19: 307.69 | H19: 否 | I19: 富裕社区
A20: 18 | B20: BH-富裕社区-大石板尹家小河台变 | C20: 10kV | D20: =VLOOKUP(B20,[1]sheet1!$B$1:$I$65536,8,FALSE) -> 18.12 | E20: =VLOOKUP(B20,[1]sheet1!$B$1:$G$65536,6,FALSE) -> 25.62 | F20: 轻载 | G20: 296.88 | H20: 否 | I20: 富裕社区
A21: 19 | B21: BH-富裕社区-范、赵、平、杨台变 | C21: 10kV | D21: =VLOOKUP(B21,[1]sheet1!$B$1:$I$65536,8,FALSE) -> 9.03 | E21: =VLOOKUP(B21,[1]sheet1!$B$1:$G$65536,6,FALSE) -> 15.6 | F21: 轻载 | G21: 305.97 | H21: 否 | I21: 富裕社区
A22: 20 | B22: BH-富裕社区-坡头坡脚台变 | C22: 10kV | D22: =VLOOKUP(B22,[1]sheet1!$B$1:$I$65536,8,FALSE) -> 4.79 | E22: =VLOOKUP(B22,[1]sheet1!$B$1:$G$65536,6,FALSE) -> 11.24 | F22: 轻载 | G22: 245.21 | H22: 否 | I22: 富裕社区
A23: 21 | B23: BH-富裕社区-秋厂台变 | C23: 10kV | D23: =VLOOKUP(B23,[1]sheet1!$B$1:$I$65536,8,FALSE) -> 12.06 | E23: =VLOOKUP(B23,[1]sheet1!$B$1:$G$65536,6,FALSE) -> 27.87 | F23: 轻载 | G23: 187.94 | H23: 否 | I23: 富裕社区
A24: 22 | B24: BH-富裕社区-小井台变 | C24: 10kV | D24: =VLOOKUP(B24,[1]sheet1!$B$1:$I$65536,8,FALSE) -> 6.43 | E24: =VLOOKUP(B24,[1]sheet1!$B$1:$G$65536,6,FALSE) -> 18.54 | F24: 轻载 | G24: 243.57 | H24: 否 | I24: 富裕社区
A25: 23 | B25: BH-岗峨社区-孟家寨台变 | C25: 10kV | D25: =VLOOKUP(B25,[1]sheet1!$B$1:$I$65536,8,FALSE) -> 15.21 | E25: =VLOOKUP(B25,[1]sheet1!$B$1:$G$65536,6,FALSE) -> 29.59 | F25: 轻载 | G25: 299.79 | H25: 否 | I25: 岗峨社区
A26: 24 | B26: BH-岗峨社区-挑坡台变 | C26: 10kV | D26: =VLOOKUP(B26,[1]sheet1!$B$1:$I$65536,8,FALSE) -> 10.14 | E26: =VLOOKUP(B26,[1]sheet1!$B$1:$G$65536,6,FALSE) -> 17.47 | F26: 轻载 | G26: 304.86 | H26: 否 | I26: 岗峨社区
A27: 25 | B27: BH-岗峨社区-新寨台变 | C27: 10kV | D27: =VLOOKUP(B27,[1]sheet1!$B$1:$I$65536,8,FALSE) -> 9.55 | E27: =VLOOKUP(B27,[1]sheet1!$B$1:$G$65536,6,FALSE) -> 18.01 | F27: 轻载 | G27: 70.45 | H27: 否 | I27: 岗峨社区
A28: 26 | B28: BH-岗峨社区-中村台变 | C28: 10kV | D28: =VLOOKUP(B28,[1]sheet1!$B$1:$I$65536,8,FALSE) -> 10.13 | E28: =VLOOKUP(B28,[1]sheet1!$B$1:$G$65536,6,FALSE) -> 20.27 | F28: 轻载 | G28: 189.87 | H28: 否 | I28: 岗峨社区
A29: 27 | B29: BH-高原社区-龙塘台变 | C29: 10kV | D29: =VLOOKUP(B29,[1]sheet1!$B$1:$I$65536,8,FALSE) -> 11.19 | E29: =VLOOKUP(B29,[1]sheet1!$B$1:$G$65536,6,FALSE) -> 35.78 | F29: 轻载 | G29: 18.81 | H29: 否 | I29: 高原社区
A30: 28 | B30: BH-花园村-杜家湾台变 | C30: 10kV | D30: =VLOOKUP(B30,[1]sheet1!$B$1:$I$65536,8,FALSE) -> 4.65 | E30: =VLOOKUP(B30,[1]sheet1!$B$1:$G$65536,6,FALSE) -> 9.8 | F30: 轻载 | G30: 310.35 | H30: 否 | I30: 花园村
A31: 29 | B31: BH-花园村-康何台变 | C31: 10kV | D31: =VLOOKUP(B31,[1]sheet1!$B$1:$I$65536,8,FALSE) -> 8.51 | E31: =VLOOKUP(B31,[1]sheet1!$B$1:$G$65536,6,FALSE) -> 16.14 | F31: 轻载 | G31: 191.49 | H31: 否 | I31: 花园村
A32: 30 | B32: BH-花园村-麻梨山台变 | C32: 10kV | D32: =VLOOKUP(B32,[1]sheet1!$B$1:$I$65536,8,FALSE) -> 9.64 | E32: =VLOOKUP(B32,[1]sheet1!$B$1:$G$65536,6,FALSE) -> 12.79 | F32: 轻载 | G32: 305.36 | H32: 否 | I32: 花园村
A33: 31 | B33: BH-花园村-柞木树台变 | C33: 10kV | D33: =VLOOKUP(B33,[1]sheet1!$B$1:$I$65536,8,FALSE) -> 6.13 | E33: =VLOOKUP(B33,[1]sheet1!$B$1:$G$65536,6,FALSE) -> 11.21 | F33: 轻载 | G33: 193.87 | H33: 否 | I33: 花园村
A34: 32 | B34: BH-花园村-直站岭台变 | C34: 10kV | D34: 12.35 | E34: 23.56 | F34: 轻载 | G34: 64.12 | H34: 否 | I34: 花园村
A35: 33 | B35: BH-双海社区-柴家营台变 | C35: 10kV | D35: =VLOOKUP(B35,[1]sheet1!$B$1:$I$65536,8,FALSE) -> 8.28 | E35: =VLOOKUP(B35,[1]sheet1!$B$1:$G$65536,6,FALSE) -> 18.7 | F35: 轻载 | G35: 391.72 | H35: 否 | I35: 双海社区
A36: 34 | B36: BH-双海社区-海口1#台变 | C36: 10kV | D36: =VLOOKUP(B36,[1]sheet1!$B$1:$I$65536,8,FALSE) -> 11.55 | E36: =VLOOKUP(B36,[1]sheet1!$B$1:$G$65536,6,FALSE) -> 24.45 | F36: 轻载 | G36: 388.45 | H36: 否 | I36: 双海社区
A37: 35 | B37: BH-双海社区-海口2#台变 | C37: 10kV | D37: =VLOOKUP(B37,[1]sheet1!$B$1:$I$65536,8,FALSE) -> 6.42 | E37: =VLOOKUP(B37,[1]sheet1!$B$1:$G$65536,6,FALSE) -> 13.46 | F37: 轻载 | G37: 393.58 | H37: 否 | I37: 双海社区
A38: 36 | B38: BH-双海社区-邵家营1#台变 | C38: 10kV | D38: =VLOOKUP(B38,[1]sheet1!$B$1:$I$65536,8,FALSE) -> 11.46 | E38: =VLOOKUP(B38,[1]sheet1!$B$1:$G$65536,6,FALSE) -> 22.75 | F38: 轻载 | G38: 388.54 | H38: 否 | I38: 双海社区
A39: 37 | B39: BH-双海社区-邵家营2#台变 | C39: 10kV | D39: =VLOOKUP(B39,[1]sheet1!$B$1:$I$65536,8,FALSE) -> 25.07 | E39: =VLOOKUP(B39,[1]sheet1!$B$1:$G$65536,6,FALSE) -> 43.15 | F39: 轻载 | G39: 54.93 | H39: 否 | I39: 双海社区
A40: 38 | B40: BH-双海社区-水沟台变 | C40: 10kV | D40: =VLOOKUP(B40,[1]sheet1!$B$1:$I$65536,8,FALSE) -> 10.49 | E40: =VLOOKUP(B40,[1]sheet1!$B$1:$G$65536,6,FALSE) -> 18.34 | F40: 轻载 | G40: 389.51 | H40: 否 | I40: 双海社区
A41: 39 | B41: BH-双海社区-赵家岳家台变 | C41: 10kV | D41: =VLOOKUP(B41,[1]sheet1!$B$1:$I$65536,8,FALSE) -> 7.12 | E41: =VLOOKUP(B41,[1]sheet1!$B$1:$G$65536,6,FALSE) -> 15.56 | F41: 轻载 | G41: 392.88 | H41: 否 | I41: 双海社区
A42: 40 | B42: BH-双坡村-大元塘台变 | C42: 10kV | D42: =VLOOKUP(B42,[1]sheet1!$B$1:$I$65536,8,FALSE) -> 9.09 | E42: =VLOOKUP(B42,[1]sheet1!$B$1:$G$65536,6,FALSE) -> 58.19 | F42: 轻载 | G42: 40.91 | H42: 否 | I42: 双坡村
A43: 41 | B43: BH-双坡村-麻厂安置地台变 | C43: 10kV | D43: =VLOOKUP(B43,[1]sheet1!$B$1:$I$65536,8,FALSE) -> 5.15 | E43: =VLOOKUP(B43,[1]sheet1!$B$1:$G$65536,6,FALSE) -> 28.42 | F43: 轻载 | G43: 24.85 | H43: 否 | I43: 双坡村
A44: 42 | B44: BH-双坡村-麻厂台变 | C44: 10kV | D44: 5.16 | E44: 12.32 | F44: 轻载 | G44: 56.45 | H44: 否 | I44: 双坡村
A45: 43 | B45: BH-双坡村-蒲箐台变 | C45: 10kV | D45: 7.98 | E45: 16.23 | F45: 轻载 | G45: 65.13 | H45: 否 | I45: 双坡村
A46: 44 | B46: BH-双坡村-双坡台变 | C46: 10kV | D46: =VLOOKUP(B46,[1]sheet1!$B$1:$I$65536,8,FALSE) -> 8.41 | E46: =VLOOKUP(B46,[1]sheet1!$B$1:$G$65536,6,FALSE) -> 27.2 | F46: 轻载 | G46: 151.59 | H46: 否 | I46: 双坡村
A47: 45 | B47: BH-双坡村-新寨台变 | C47: 10kV | D47: =VLOOKUP(B47,[1]sheet1!$B$1:$I$65536,8,FALSE) -> 3.96 | E47: =VLOOKUP(B47,[1]sheet1!$B$1:$G$65536,6,FALSE) -> 14.65 | F47: 轻载 | G47: 46.04 | H47: 否 | I47: 双坡村
A48: 46 | B48: BH-下村社区-北海下村台变 | C48: 10kV | D48: =VLOOKUP(B48,[1]sheet1!$B$1:$I$65536,8,FALSE) -> 7.03 | E48: =VLOOKUP(B48,[1]sheet1!$B$1:$G$65536,6,FALSE) -> 17.23 | F48: 轻载 | G48: 307.97 | H48: 否 | I48: 下村社区
A49: 47 | B49: BH-下村社区-杜家湾台变 | C49: 10kV | D49: =VLOOKUP(B49,[1]sheet1!$B$1:$I$65536,8,FALSE) -> 8.75 | E49: =VLOOKUP(B49,[1]sheet1!$B$1:$G$65536,6,FALSE) -> 18.67 | F49: 轻载 | G49: 191.25 | H49: 否 | I49: 下村社区
A50: 48 | B50: BH-下村社区-后所营台变 | C50: 10kV | D50: =VLOOKUP(B50,[1]sheet1!$B$1:$I$65536,8,FALSE) -> 15.5 | E50: =VLOOKUP(B50,[1]sheet1!$B$1:$G$65536,6,FALSE) -> 27.22 | F50: 轻载 | G50: 184.50 | H50: 否 | I50: 下村社区
A51: 49 | B51: BH-下村社区-上村台变 | C51: 10kV | D51: =VLOOKUP(B51,[1]sheet1!$B$1:$I$65536,8,FALSE) -> 5.19 | E51: =VLOOKUP(B51,[1]sheet1!$B$1:$G$65536,6,FALSE) -> 15.99 | F51: 轻载 | G51: 94.81 | H51: 否 | I51: 下村社区
A52: 50 | B52: BH-下村社区-中村台变 | C52: 10kV | D52: =VLOOKUP(B52,[1]sheet1!$B$1:$I$65536,8,FALSE) -> 7.46 | E52: =VLOOKUP(B52,[1]sheet1!$B$1:$G$65536,6,FALSE) -> 19.97 | F52: 轻载 | G52: 392.54 | H52: 否 | I52: 下村社区
A53: 51 | B53: BH-新乐社区-代家寨台变 | C53: 10kV | D53: =VLOOKUP(B53,[1]sheet1!$B$1:$I$65536,8,FALSE) -> 8.08 | E53: =VLOOKUP(B53,[1]sheet1!$B$1:$G$65536,6,FALSE) -> 18.71 | F53: 轻载 | G53: 191.92 | H53: 否 | I53: 新乐社区
A54: 52 | B54: BH-新乐社区-番徐刘马段家寨台变 | C54: 10kV | D54: =VLOOKUP(B54,[1]sheet1!$B$1:$I$65536,8,FALSE) -> 11.99 | E54: =VLOOKUP(B54,[1]sheet1!$B$1:$G$65536,6,FALSE) -> 31.2 | F54: 轻载 | G54: 303.01 | H54: 否 | I54: 新乐社区
A55: 53 | B55: BH-新乐社区-沟下台变 | C55: 10kV | D55: =VLOOKUP(B55,[1]sheet1!$B$1:$I$65536,8,FALSE) -> 5.22 | E55: =VLOOKUP(B55,[1]sheet1!$B$1:$G$65536,6,FALSE) -> 13.08 | F55: 轻载 | G55: 194.78 | H55: 否 | I55: 新乐社区
A56: 54 | B56: BH-新乐社区-郭家营台变 | C56: 10kV | D56: =VLOOKUP(B56,[1]sheet1!$B$1:$I$65536,8,FALSE) -> 14.99 | E56: =VLOOKUP(B56,[1]sheet1!$B$1:$G$65536,6,FALSE) -> 45 | F56: 轻载 | G56: 85.01 | H56: 否 | I56: 新乐社区
A57: 55 | B57: BH-新乐社区-龙家营台变 | C57: 10kV | D57: =VLOOKUP(B57,[1]sheet1!$B$1:$I$65536,8,FALSE) -> 9.49 | E57: =VLOOKUP(B57,[1]sheet1!$B$1:$G$65536,6,FALSE) -> 25.11 | F57: 轻载 | G57: 305.51 | H57: 否 | I57: 新乐社区
A58: 56 | B58: BH-新乐社区-玛御谷清芷园1#箱变-DW | C58: 10kV | D58: =VLOOKUP(B58,[1]sheet1!$B$1:$I$65536,8,FALSE) -> 2.21 | E58: =VLOOKUP(B58,[1]sheet1!$B$1:$G$65536,6,FALSE) -> 3.94 | F58: 轻载 | G58: 797.79 | H58: 否 | I58: 新乐社区
A59: 57 | B59: BH-新乐社区-玛御谷清芷园2#箱变-DW | C59: 10kV | D59: =VLOOKUP(B59,[1]sheet1!$B$1:$I$65536,8,FALSE) -> 3.78 | E59: =VLOOKUP(B59,[1]sheet1!$B$1:$G$65536,6,FALSE) -> 4.97 | F59: 轻载 | G59: 626.22 | H59: 否 | I59: 新乐社区
A60: 58 | B60: BH-新乐社区-玛御谷清芷园3#箱变-DW | C60: 10kV | D60: =VLOOKUP(B60,[1]sheet1!$B$1:$I$65536,8,FALSE) -> 2.79 | E60: =VLOOKUP(B60,[1]sheet1!$B$1:$G$65536,6,FALSE) -> 3.65 | F60: 轻载 | G60: 497.21 | H60: 否 | I60: 新乐社区
A61: 59 | B61: BH-新乐社区-清河台变 | C61: 10kV | D61: 8.44 | E61: 32.28 | F61: 轻载 | G61: 82.40 | H61: 否 | I61: 新乐社区
A62: 60 | B62: BH-新乐社区-新乐街1#台变 | C62: 10kV | D62: =VLOOKUP(B62,[1]sheet1!$B$1:$I$65536,8,FALSE) -> 25.06 | E62: =VLOOKUP(B62,[1]sheet1!$B$1:$G$65536,6,FALSE) -> 44.85 | F62: 轻载 | G62: 289.94 | H62: 否 | I62: 新乐社区
A63: 61 | B63: BH-新乐社区-新乐街2#台变 | C63: 10kV | D63: =VLOOKUP(B63,[1]sheet1!$B$1:$I$65536,8,FALSE) -> 29.59 | E63: =VLOOKUP(B63,[1]sheet1!$B$1:$G$65536,6,FALSE) -> 68.53 | F63: 轻载 | G63: 285.41 | H63: 否 | I63: 新乐社区
A64: 62 | B64: BH-新乐社区-秧田洼台变 | C64: 10kV | D64: =VLOOKUP(B64,[1]sheet1!$B$1:$I$65536,8,FALSE) -> 31.15 | E64: =VLOOKUP(B64,[1]sheet1!$B$1:$G$65536,6,FALSE) -> 68.35 | F64: 经济运行 | G64: 168.85 | H64: 否 | I64: 新乐社区
A65: 63 | B65: BH-盈河村-岔路台变 | C65: 10kV | D65: =VLOOKUP(B65,[1]sheet1!$B$1:$I$65536,8,FALSE) -> 5.97 | E65: =VLOOKUP(B65,[1]sheet1!$B$1:$G$65536,6,FALSE) -> 17.64 | F65: 轻载 | G65: 309.03 | H65: 否 | I65: 盈河村
A66: 64 | B66: BH-盈河村-大寨台变 | C66: 10kV | D66: =VLOOKUP(B66,[1]sheet1!$B$1:$I$65536,8,FALSE) -> 10.91 | E66: =VLOOKUP(B66,[1]sheet1!$B$1:$G$65536,6,FALSE) -> 25.13 | F66: 轻载 | G66: 304.09 | H66: 否 | I66: 盈河村
A67: 65 | B67: BH-盈河村-汉坝台变 | C67: 10kV | D67: =VLOOKUP(B67,[1]sheet1!$B$1:$I$65536,8,FALSE) -> 8.48 | E67: =VLOOKUP(B67,[1]sheet1!$B$1:$G$65536,6,FALSE) -> 25.85 | F67: 轻载 | G67: 116.52 | H67: 否 | I67: 盈河村
A68: 66 | B68: BH-盈河村-河头台变 | C68: 10kV | D68: =VLOOKUP(B68,[1]sheet1!$B$1:$I$65536,8,FALSE) -> 8.19 | E68: =VLOOKUP(B68,[1]sheet1!$B$1:$G$65536,6,FALSE) -> 23.13 | F68: 轻载 | G68: 71.81 | H68: 否 | I68: 盈河村
A69: 67 | B69: BH-盈河村-街子台变 | C69: 10kV | D69: =VLOOKUP(B69,[1]sheet1!$B$1:$I$65536,8,FALSE) -> 25.62 | E69: =VLOOKUP(B69,[1]sheet1!$B$1:$G$65536,6,FALSE) -> 57.62 | F69: 轻载 | G69: 54.38 | H69: 否 | I69: 盈河村
A70: 68 | B70: BH-盈河村-酒寨台变 | C70: 10kV | D70: =VLOOKUP(B70,[1]sheet1!$B$1:$I$65536,8,FALSE) -> 9.91 | E70: =VLOOKUP(B70,[1]sheet1!$B$1:$G$65536,6,FALSE) -> 23.83 | F70: 轻载 | G70: 240.09 | H70: 否 | I70: 盈河村
A71: 69 | B71: BH-盈河村-李家寨台变 | C71: 10kV | D71: 16.27 | E71: 23.85 | F71: 轻载 | G71: 123.45 | H71: 否 | I71: 盈河村
A72: 70 | B72: BH-盈河村-新红台变 | C72: 10kV | D72: =VLOOKUP(B72,[1]sheet1!$B$1:$I$65536,8,FALSE) -> 11.36 | E72: =VLOOKUP(B72,[1]sheet1!$B$1:$G$65536,6,FALSE) -> 26.64 | F72: 轻载 | G72: 113.64 | H72: 否 | I72: 盈河村
A73: 71 | B73: BH-盈河村-澡塘台变 | C73: 10kV | D73: =VLOOKUP(B73,[1]sheet1!$B$1:$I$65536,8,FALSE) -> 4.42 | E73: =VLOOKUP(B73,[1]sheet1!$B$1:$G$65536,6,FALSE) -> 10.75 | F73: 轻载 | G73: 195.58 | H73: 否 | I73: 盈河村
A74: 72 | B74: BH-盈水社区-村尾1#台变 | C74: 10kV | D74: =VLOOKUP(B74,[1]sheet1!$B$1:$I$65536,8,FALSE) -> 27.8 | E74: =VLOOKUP(B74,[1]sheet1!$B$1:$G$65536,6,FALSE) -> 49.9 | F74: 轻载 | G74: 72.20 | H74: 否 | I74: 盈水社区
A75: 73 | B75: BH-盈水社区-村尾2#台变 | C75: 10kV | D75: =VLOOKUP(B75,[1]sheet1!$B$1:$I$65536,8,FALSE) -> 7.93 | E75: =VLOOKUP(B75,[1]sheet1!$B$1:$G$65536,6,FALSE) -> 19.56 | F75: 轻载 | G75: 307.07 | H75: 否 | I75: 盈水社区
A76: 74 | B76: BH-盈水社区-下河村1#台变 | C76: 10kV | D76: 12.32 | E76: 14.89 | F76: 轻载 | G76: 123.12 | H76: 否 | I76: 盈水社区
A77: 75 | B77: BH-盈水社区-下河村2#台变 | C77: 10kV | D77: =VLOOKUP(B77,[1]sheet1!$B$1:$I$65536,8,FALSE) -> 5.45 | E77: =VLOOKUP(B77,[1]sheet1!$B$1:$G$65536,6,FALSE) -> 11.56 | F77: 轻载 | G77: 309.55 | H77: 否 | I77: 盈水社区
A78: 76 | B78: BH-油灯社区-草坝街台变 | C78: 10kV | D78: =VLOOKUP(B78,[1]sheet1!$B$1:$I$65536,8,FALSE) -> 22.52 | E78: =VLOOKUP(B78,[1]sheet1!$B$1:$G$65536,6,FALSE) -> 41.23 | F78: 轻载 | G78: 292.48 | H78: 否 | I78: 油灯社区
A79: 77 | B79: BH-油灯社区-洞觉村台变 | C79: 10kV | D79: =VLOOKUP(B79,[1]sheet1!$B$1:$I$65536,8,FALSE) -> 9.76 | E79: =VLOOKUP(B79,[1]sheet1!$B$1:$G$65536,6,FALSE) -> 19.19 | F79: 轻载 | G79: 390.24 | H79: 否 | I79: 油灯社区
A80: 78 | B80: BH-油灯社区-油灯庄1#台变 | C80: 10kV | D80: =VLOOKUP(B80,[1]sheet1!$B$1:$I$65536,8,FALSE) -> 10.94 | E80: =VLOOKUP(B80,[1]sheet1!$B$1:$G$65536,6,FALSE) -> 22.95 | F80: 轻载 | G80: 304.06 | H80: 否 | I80: 油灯社区
A81: 79 | B81: BH-油灯社区-油灯庄2#台变 | C81: 10kV | D81: =VLOOKUP(B81,[1]sheet1!$B$1:$I$65536,8,FALSE) -> 9.01 | E81: =VLOOKUP(B81,[1]sheet1!$B$1:$G$65536,6,FALSE) -> 19.55 | F81: 轻载 | G81: 305.99 | H81: 否 | I81: 油灯社区
A82: 80 | B82: BH-竹坝村-黄姜地台变 | C82: 10kV | D82: =VLOOKUP(B82,[1]sheet1!$B$1:$I$65536,8,FALSE) -> 9.2 | E82: =VLOOKUP(B82,[1]sheet1!$B$1:$G$65536,6,FALSE) -> 26.18 | F82: 轻载 | G82: 20.80 | H82: 否 | I82: 竹坝村
A83: 81 | B83: BH-竹坝村-石老虎台变 | C83: 10kV | D83: =VLOOKUP(B83,[1]sheet1!$B$1:$I$65536,8,FALSE) -> 9.7 | E83: =VLOOKUP(B83,[1]sheet1!$B$1:$G$65536,6,FALSE) -> 22.84 | F83: 轻载 | G83: 70.30 | H83: 否 | I83: 竹坝村
A84: 82 | B84: CQS-大寨村-大寨1#台变 | C84: 10kV | D84: =VLOOKUP(B84,[1]sheet1!$B$1:$I$65536,8,FALSE) -> 13.1 | E84: =VLOOKUP(B84,[1]sheet1!$B$1:$G$65536,6,FALSE) -> 23.58 | F84: 轻载 | G84: 236.90 | H84: 否 | I84: 腾冲市-清水镇-大寨村
A85: 83 | B85: CQS-大寨村-大寨4#台变 | C85: 10kV | D85: =VLOOKUP(B85,[1]sheet1!$B$1:$I$65536,8,FALSE) -> 8.4 | E85: =VLOOKUP(B85,[1]sheet1!$B$1:$G$65536,6,FALSE) -> 25.01 | F85: 轻载 | G85: 306.60 | H85: 否 | I85: 腾冲市-清水镇-大寨村
A86: 84 | B86: CQS-大寨村-沙坡1#台变 | C86: 10kV | D86: =VLOOKUP(B86,[1]sheet1!$B$1:$I$65536,8,FALSE) -> 9.11 | E86: =VLOOKUP(B86,[1]sheet1!$B$1:$G$65536,6,FALSE) -> 21.46 | F86: 轻载 | G86: 240.89 | H86: 否 | I86: 腾冲市-清水镇-大寨村
A87: 85 | B87: CQS-大寨村-沙坡2#台变 | C87: 10kV | D87: =VLOOKUP(B87,[1]sheet1!$B$1:$I$65536,8,FALSE) -> 8.43 | E87: =VLOOKUP(B87,[1]sheet1!$B$1:$G$65536,6,FALSE) -> 18.4 | F87: 轻载 | G87: 151.57 | H87: 否 | I87: 腾冲市-清水镇-大寨村
A88: 86 | B88: CQS-荆陈村-陈家寨1#台变 | C88: 10kV | D88: =VLOOKUP(B88,[1]sheet1!$B$1:$I$65536,8,FALSE) -> 10.13 | E88: =VLOOKUP(B88,[1]sheet1!$B$1:$G$65536,6,FALSE) -> 25.25 | F88: 轻载 | G88: 149.87 | H88: 否 | I88: 腾冲市-清水镇-荆陈村
A89: 87 | B89: CQS-荆陈村-陈家寨2#台变 | C89: 10kV | D89: =VLOOKUP(B89,[1]sheet1!$B$1:$I$65536,8,FALSE) -> 7.9 | E89: =VLOOKUP(B89,[1]sheet1!$B$1:$G$65536,6,FALSE) -> 22.49 | F89: 轻载 | G89: 152.10 | H89: 否 | I89: 腾冲市-清水镇-荆陈村
A90: 88 | B90: CQS-荆陈村-陈家寨3#台变 | C90: 10kV | D90: =VLOOKUP(B90,[1]sheet1!$B$1:$I$65536,8,FALSE) -> 4.91 | E90: =VLOOKUP(B90,[1]sheet1!$B$1:$G$65536,6,FALSE) -> 10.15 | F90: 轻载 | G90: 310.09 | H90: 否 | I90: 腾冲市-清水镇-荆陈村
A91: 89 | B91: CQS-荆陈村-荆竹寨1#台变 | C91: 10kV | D91: =VLOOKUP(B91,[1]sheet1!$B$1:$I$65536,8,FALSE) -> 6.14 | E91: =VLOOKUP(B91,[1]sheet1!$B$1:$G$65536,6,FALSE) -> 24.84 | F91: 轻载 | G91: 153.86 | H91: 否 | I91: 腾冲市-清水镇-荆陈村
A92: 90 | B92: CQS-荆陈村-荆竹寨2#台变 | C92: 10kV | D92: =VLOOKUP(B92,[1]sheet1!$B$1:$I$65536,8,FALSE) -> 6.4 | E92: =VLOOKUP(B92,[1]sheet1!$B$1:$G$65536,6,FALSE) -> 14.56 | F92: 轻载 | G92: 308.60 | H92: 否 | I92: 腾冲市-清水镇-荆陈村
A93: 91 | B93: CQS-荆陈村-朱星街集镇台变 | C93: 10kV | D93: =VLOOKUP(B93,[1]sheet1!$B$1:$I$65536,8,FALSE) -> 16.22 | E93: =VLOOKUP(B93,[1]sheet1!$B$1:$G$65536,6,FALSE) -> 34.43 | F93: 轻载 | G93: 183.78 | H93: 否 | I93: 腾冲市-清水镇-荆陈村
A94: 92 | B94: CQS-良盈村-芭蕉关1#台变 | C94: 10kV | D94: =VLOOKUP(B94,[1]sheet1!$B$1:$I$65536,8,FALSE) -> 16.38 | E94: =VLOOKUP(B94,[1]sheet1!$B$1:$G$65536,6,FALSE) -> 30.45 | F94: 轻载 | G94: 143.62 | H94: 否 | I94: 腾冲市-清水镇-良盈村
A95: 93 | B95: CQS-良盈村-芭蕉关2#台变 | C95: 10kV | D95: =VLOOKUP(B95,[1]sheet1!$B$1:$I$65536,8,FALSE) -> 8.75 | E95: =VLOOKUP(B95,[1]sheet1!$B$1:$G$65536,6,FALSE) -> 18.52 | F95: 轻载 | G95: 191.25 | H95: 否 | I95: 腾冲市-清水镇-良盈村
A96: 94 | B96: CQS-良盈村-半个山台变 | C96: 10kV | D96: =VLOOKUP(B96,[1]sheet1!$B$1:$I$65536,8,FALSE) -> 7.97 | E96: =VLOOKUP(B96,[1]sheet1!$B$1:$G$65536,6,FALSE) -> 17.29 | F96: 轻载 | G96: 117.03 | H96: 否 | I96: 腾冲市-清水镇-良盈村
A97: 95 | B97: CQS-良盈村-蔡家寨老寨子台变 | C97: 10kV | D97: =VLOOKUP(B97,[1]sheet1!$B$1:$I$65536,8,FALSE) -> 13.56 | E97: =VLOOKUP(B97,[1]sheet1!$B$1:$G$65536,6,FALSE) -> 62.53 | F97: 轻载 | G97: 36.44 | H97: 否 | I97: 腾冲市-清水镇-良盈村
A98: 96 | B98: CQS-良盈村-蔡家寨新寨子台变 | C98: 10kV | D98: =VLOOKUP(B98,[1]sheet1!$B$1:$I$65536,8,FALSE) -> 9.86 | E98: =VLOOKUP(B98,[1]sheet1!$B$1:$G$65536,6,FALSE) -> 25.82 | F98: 轻载 | G98: 70.14 | H98: 否 | I98: 腾冲市-清水镇-良盈村
A99: 97 | B99: CQS-良盈村-谷家寨台变 | C99: 10kV | D99: =VLOOKUP(B99,[1]sheet1!$B$1:$I$65536,8,FALSE) -> 5.54 | E99: =VLOOKUP(B99,[1]sheet1!$B$1:$G$65536,6,FALSE) -> 12.86 | F99: 轻载 | G99: 244.46 | H99: 否 | I99: 腾冲市-清水镇-良盈村
A100: 98 | B100: CQS-良盈村-蒋家营台变 | C100: 10kV | D100: =VLOOKUP(B100,[1]sheet1!$B$1:$I$65536,8,FALSE) -> 0.3 | E100: =VLOOKUP(B100,[1]sheet1!$B$1:$G$65536,6,FALSE) -> 2.36 | F100: 轻载 | G100: 79.70 | H100: 否 | I100: 腾冲市-清水镇-良盈村
A101: 99 | B101: CQS-良盈村-老洋河台变 | C101: 10kV | D101: =VLOOKUP(B101,[1]sheet1!$B$1:$I$65536,8,FALSE) -> 10.35 | E101: =VLOOKUP(B101,[1]sheet1!$B$1:$G$65536,6,FALSE) -> 28.4 | F101: 轻载 | G101: 189.65 | H101: 否 | I101: 腾冲市-清水镇-良盈村
A102: 100 | B102: CQS-良盈村-良盈村委会台变 | C102: 10kV | D102: =VLOOKUP(B102,[1]sheet1!$B$1:$I$65536,8,FALSE) -> 14.31 | E102: =VLOOKUP(B102,[1]sheet1!$B$1:$G$65536,6,FALSE) -> 35.08 | F102: 轻载 | G102: 110.69 | H102: 否 | I102: 腾冲市-清水镇-良盈村
A103: 101 | B103: CQS-良盈村-蔺家寨1#台变 | C103: 10kV | D103: =VLOOKUP(B103,[1]sheet1!$B$1:$I$65536,8,FALSE) -> 10.22 | E103: =VLOOKUP(B103,[1]sheet1!$B$1:$G$65536,6,FALSE) -> 29.94 | F103: 轻载 | G103: 69.78 | H103: 否 | I103: 腾冲市-清水镇-良盈村
A104: 102 | B104: CQS-良盈村-蔺家寨2#台变 | C104: 10kV | D104: =VLOOKUP(B104,[1]sheet1!$B$1:$I$65536,8,FALSE) -> 6.06 | E104: =VLOOKUP(B104,[1]sheet1!$B$1:$G$65536,6,FALSE) -> 16.67 | F104: 轻载 | G104: 193.94 | H104: 否 | I104: 腾冲市-清水镇-良盈村
A105: 103 | B105: CQS-良盈村-蔺家寨3#台变 | C105: 10kV | D105: =VLOOKUP(B105,[1]sheet1!$B$1:$I$65536,8,FALSE) -> 8.27 | E105: =VLOOKUP(B105,[1]sheet1!$B$1:$G$65536,6,FALSE) -> 31.58 | F105: 轻载 | G105: 241.73 | H105: 否 | I105: 腾冲市-清水镇-良盈村
A106: 104 | B106: CQS-良盈村-热海新村台变 | C106: 10kV | D106: =VLOOKUP(B106,[1]sheet1!$B$1:$I$65536,8,FALSE) -> 25.71 | E106: =VLOOKUP(B106,[1]sheet1!$B$1:$G$65536,6,FALSE) -> 45.49 | F106: 轻载 | G106: 54.29 | H106: 否 | I106: 腾冲市-清水镇-良盈村
A107: 105 | B107: CQS-清水村-村委会台变 | C107: 10kV | D107: =VLOOKUP(B107,[1]sheet1!$B$1:$I$65536,8,FALSE) -> 28.74 | E107: =VLOOKUP(B107,[1]sheet1!$B$1:$G$65536,6,FALSE) -> 68.66 | F107: 轻载 | G107: 131.26 | H107: 否 | I107: 腾冲市-清水镇-清水村
A108: 106 | B108: CQS-清水村-湖东新墙台变 | C108: 10kV | D108: =VLOOKUP(B108,[1]sheet1!$B$1:$I$65536,8,FALSE) -> 14.76 | E108: =VLOOKUP(B108,[1]sheet1!$B$1:$G$65536,6,FALSE) -> 27.59 | F108: 轻载 | G108: 235.24 | H108: 否 | I108: 腾冲市-清水镇-清水村
A109: 107 | B109: CQS-清水村-老街子台变 | C109: 10kV | D109: =VLOOKUP(B109,[1]sheet1!$B$1:$I$65536,8,FALSE) -> 11.2 | E109: =VLOOKUP(B109,[1]sheet1!$B$1:$G$65536,6,FALSE) -> 22.52 | F109: 轻载 | G109: 303.80 | H109: 否 | I109: 腾冲市-清水镇-清水村
A110: 108 | B110: CQS-清水村-老寨子台变 | C110: 10kV | D110: =VLOOKUP(B110,[1]sheet1!$B$1:$I$65536,8,FALSE) -> 10.72 | E110: =VLOOKUP(B110,[1]sheet1!$B$1:$G$65536,6,FALSE) -> 28.88 | F110: 轻载 | G110: 149.28 | H110: 否 | I110: 腾冲市-清水镇-清水村
A111: 109 | B111: CQS-清水村-刘家寨台变 | C111: 10kV | D111: =VLOOKUP(B111,[1]sheet1!$B$1:$I$65536,8,FALSE) -> 19.16 | E111: =VLOOKUP(B111,[1]sheet1!$B$1:$G$65536,6,FALSE) -> 30.58 | F111: 轻载 | G111: 60.84 | H111: 否 | I111: 腾冲市-清水镇-清水村
A112: 110 | B112: CQS-清水村-罗所冲下寨台变 | C112: 10kV | D112: =VLOOKUP(B112,[1]sheet1!$B$1:$I$65536,8,FALSE) -> 18.87 | E112: =VLOOKUP(B112,[1]sheet1!$B$1:$G$65536,6,FALSE) -> 38.71 | F112: 轻载 | G112: 106.13 | H112: 否 | I112: 腾冲市-清水镇-清水村
A113: 111 | B113: CQS-清水村-罗所冲新寨台变 | C113: 10kV | D113: =VLOOKUP(B113,[1]sheet1!$B$1:$I$65536,8,FALSE) -> 12.54 | E113: =VLOOKUP(B113,[1]sheet1!$B$1:$G$65536,6,FALSE) -> 31.01 | F113: 轻载 | G113: 112.46 | H113: 否 | I113: 腾冲市-清水镇-清水村
A114: 112 | B114: CQS-清水村-罗所冲中寨台变 | C114: 10kV | D114: =VLOOKUP(B114,[1]sheet1!$B$1:$I$65536,8,FALSE) -> 30.61 | E114: =VLOOKUP(B114,[1]sheet1!$B$1:$G$65536,6,FALSE) -> 59.87 | F114: 经济运行 | G114: 169.39 | H114: 否 | I114: 腾冲市-清水镇-清水村
A115: 113 | B115: CQS-清水村-苏家营1#台变 | C115: 10kV | D115: =VLOOKUP(B115,[1]sheet1!$B$1:$I$65536,8,FALSE) -> 13.62 | E115: =VLOOKUP(B115,[1]sheet1!$B$1:$G$65536,6,FALSE) -> 19.09 | F115: 轻载 | G115: 301.38 | H115: 否 | I115: 腾冲市-清水镇-清水村
A116: 114 | B116: CQS-清水村-苏家营2#台变 | C116: 10kV | D116: =VLOOKUP(B116,[1]sheet1!$B$1:$I$65536,8,FALSE) -> 15.18 | E116: =VLOOKUP(B116,[1]sheet1!$B$1:$G$65536,6,FALSE) -> 30.24 | F116: 轻载 | G116: 64.82 | H116: 否 | I116: 腾冲市-清水镇-清水村
A117: 115 | B117: CQS-三家村-冯家营台变 | C117: 10kV | D117: =VLOOKUP(B117,[1]sheet1!$B$1:$I$65536,8,FALSE) -> 12.16 | E117: =VLOOKUP(B117,[1]sheet1!$B$1:$G$65536,6,FALSE) -> 25.68 | F117: 轻载 | G117: 387.84 | H117: 否 | I117: 腾冲市-清水镇-三家村
A118: 116 | B118: CQS-三家村-何家寨台变 | C118: 10kV | D118: 8.28 | E118: 36.66 | F118: 轻载 | G118: 136.55 | H118: 否 | I118: 腾冲市-清水镇-三家村
A119: 117 | B119: CQS-三家村-蛮磊台变 | C119: 10kV | D119: 7.39 | E119: 39.01 | F119: 轻载 | G119: 83.35 | H119: 否 | I119: 腾冲市-清水镇-三家村
A120: 118 | B120: CQS-三家村-三家村寨台变 | C120: 10kV | D120: =VLOOKUP(B120,[1]sheet1!$B$1:$I$65536,8,FALSE) -> 14.38 | E120: =VLOOKUP(B120,[1]sheet1!$B$1:$G$65536,6,FALSE) -> 25.56 | F120: 轻载 | G120: 385.62 | H120: 否 | I120: 腾冲市-清水镇-三家村
A121: 119 | B121: CQS-三家村-中寨台变 | C121: 10kV | D121: =VLOOKUP(B121,[1]sheet1!$B$1:$I$65536,8,FALSE) -> 24.48 | E121: =VLOOKUP(B121,[1]sheet1!$B$1:$G$65536,6,FALSE) -> 57.83 | F121: 轻载 | G121: 135.52 | H121: 否 | I121: 腾冲市-清水镇-三家村
A122: 120 | B122: CQS-驼峰村-栗柴坝大坡社台变 | C122: 10kV | D122: =VLOOKUP(B122,[1]sheet1!$B$1:$I$65536,8,FALSE) -> 12.04 | E122: =VLOOKUP(B122,[1]sheet1!$B$1:$G$65536,6,FALSE) -> 26.55 | F122: 轻载 | G122: 112.96 | H122: 否 | I122: 腾冲市-清水镇-驼峰村
A123: 121 | B123: CQS-驼峰村-栗柴坝大寨台变 | C123: 10kV | D123: =VLOOKUP(B123,[1]sheet1!$B$1:$I$65536,8,FALSE) -> 8.14 | E123: =VLOOKUP(B123,[1]sheet1!$B$1:$G$65536,6,FALSE) -> 19.13 | F123: 轻载 | G123: 191.86 | H123: 否 | I123: 腾冲市-清水镇-驼峰村
A124: 122 | B124: CQS-驼峰村-栗柴坝许上许下台变 | C124: 10kV | D124: =VLOOKUP(B124,[1]sheet1!$B$1:$I$65536,8,FALSE) -> 12.65 | E124: =VLOOKUP(B124,[1]sheet1!$B$1:$G$65536,6,FALSE) -> 35.51 | F124: 轻载 | G124: 187.35 | H124: 否 | I124: 腾冲市-清水镇-驼峰村
A125: 123 | B125: CQS-驼峰村-瞿家营1至3社台变 | C125: 10kV | D125: =VLOOKUP(B125,[1]sheet1!$B$1:$I$65536,8,FALSE) -> 4.23 | E125: =VLOOKUP(B125,[1]sheet1!$B$1:$G$65536,6,FALSE) -> 15.26 | F125: 轻载 | G125: 195.77 | H125: 否 | I125: 腾冲市-清水镇-驼峰村
A126: 124 | B126: CQS-驼峰村-瞿家营4、5社台变 | C126: 10kV | D126: =VLOOKUP(B126,[1]sheet1!$B$1:$I$65536,8,FALSE) -> 6.42 | E126: =VLOOKUP(B126,[1]sheet1!$B$1:$G$65536,6,FALSE) -> 16.13 | F126: 轻载 | G126: 193.58 | H126: 否 | I126: 腾冲市-清水镇-驼峰村
A127: 125 | B127: CQS-驼峰村-瞿家营6社台变 | C127: 10kV | D127: =VLOOKUP(B127,[1]sheet1!$B$1:$I$65536,8,FALSE) -> 6.33 | E127: =VLOOKUP(B127,[1]sheet1!$B$1:$G$65536,6,FALSE) -> 19.68 | F127: 轻载 | G127: 193.67 | H127: 否 | I127: 腾冲市-清水镇-驼峰村
A128: 126 | B128: CQS-驼峰村-瞿家营槽子口台变 | C128: 10kV | D128: =VLOOKUP(B128,[1]sheet1!$B$1:$I$65536,8,FALSE) -> 10.93 | E128: =VLOOKUP(B128,[1]sheet1!$B$1:$G$65536,6,FALSE) -> 26.55 | F128: 轻载 | G128: 149.07 | H128: 否 | I128: 腾冲市-清水镇-驼峰村
A129: 127 | B129: CQS-驼峰村-水坝田台变 | C129: 10kV | D129: =VLOOKUP(B129,[1]sheet1!$B$1:$I$65536,8,FALSE) -> 8.19 | E129: =VLOOKUP(B129,[1]sheet1!$B$1:$G$65536,6,FALSE) -> 24.48 | F129: 轻载 | G129: 41.81 | H129: 否 | I129: 腾冲市-清水镇-驼峰村
A130: 128 | B130: CQS-驼峰村-文兴社台变 | C130: 10kV | D130: =VLOOKUP(B130,[1]sheet1!$B$1:$I$65536,8,FALSE) -> 5.05 | E130: =VLOOKUP(B130,[1]sheet1!$B$1:$G$65536,6,FALSE) -> 12.79 | F130: 轻载 | G130: 244.95 | H130: 否 | I130: 腾冲市-清水镇-驼峰村
A131: 129 | B131: CQS-驼峰村-虞家营新村1#台变 | C131: 10kV | D131: =VLOOKUP(B131,[1]sheet1!$B$1:$I$65536,8,FALSE) -> 13.69 | E131: =VLOOKUP(B131,[1]sheet1!$B$1:$G$65536,6,FALSE) -> 29.2 | F131: 轻载 | G131: 236.31 | H131: 否 | I131: 腾冲市-清水镇-驼峰村
A132: 130 | B132: CQS-驼峰村-虞家营新村2#台变 | C132: 10kV | D132: =VLOOKUP(B132,[1]sheet1!$B$1:$I$65536,8,FALSE) -> 5.17 | E132: =VLOOKUP(B132,[1]sheet1!$B$1:$G$65536,6,FALSE) -> 15.14 | F132: 轻载 | G132: 309.83 | H132: 否 | I132: 腾冲市-清水镇-驼峰村
A133: 131 | B133: DS-朝阳社区-陈家村1#台变 | C133: 10kV | D133: =VLOOKUP(B133,[1]sheet1!$B$1:$I$65536,8,FALSE) -> 22.15 | E133: =VLOOKUP(B133,[1]sheet1!$B$1:$G$65536,6,FALSE) -> 41.68 | F133: 轻载 | G133: 292.85 | H133: 否 | I133: 腾冲市-腾越街道-朝阳社区
A134: 132 | B134: DS-朝阳社区-陈家村2#台变 | C134: 10kV | D134: =VLOOKUP(B134,[1]sheet1!$B$1:$I$65536,8,FALSE) -> 16.33 | E134: =VLOOKUP(B134,[1]sheet1!$B$1:$G$65536,6,FALSE) -> 36.78 | F134: 轻载 | G134: 233.67 | H134: 否 | I134: 腾冲市-腾越街道-朝阳社区
A135: 133 | B135: DS-朝阳社区-胡家湾1#台变 | C135: 10kV | D135: =VLOOKUP(B135,[1]sheet1!$B$1:$I$65536,8,FALSE) -> 4.01 | E135: =VLOOKUP(B135,[1]sheet1!$B$1:$G$65536,6,FALSE) -> 13.58 | F135: 轻载 | G135: 495.99 | H135: 否 | I135: 腾冲市-腾越街道-朝阳社区
A136: 134 | B136: DS-朝阳社区-胡家湾2#台变 | C136: 10kV | D136: =VLOOKUP(B136,[1]sheet1!$B$1:$I$65536,8,FALSE) -> 30.93 | E136: =VLOOKUP(B136,[1]sheet1!$B$1:$G$65536,6,FALSE) -> 86.51 | F136: 经济运行 | G136: 284.07 | H136: 否 | I136: 腾冲市-腾越街道-朝阳社区
A137: 135 | B137: DS-朝阳社区-胡家湾3#台变 | C137: 10kV | D137: =VLOOKUP(B137,[1]sheet1!$B$1:$I$65536,8,FALSE) -> 32.88 | E137: =VLOOKUP(B137,[1]sheet1!$B$1:$G$65536,6,FALSE) -> 81.58 | F137: 经济运行 | G137: 282.12 | H137: 否 | I137: 腾冲市-腾越街道-朝阳社区
A138: 136 | B138: DS-朝阳社区-胡家湾4#台变 | C138: 10kV | D138: =VLOOKUP(B138,[1]sheet1!$B$1:$I$65536,8,FALSE) -> 9.86 | E138: =VLOOKUP(B138,[1]sheet1!$B$1:$G$65536,6,FALSE) -> 35.11 | F138: 轻载 | G138: 490.14 | H138: 否 | I138: 腾冲市-腾越街道-朝阳社区
A139: 137 | B139: DS-朝阳社区-胡家湾5#台变 | C139: 10kV | D139: =VLOOKUP(B139,[1]sheet1!$B$1:$I$65536,8,FALSE) -> 11.63 | E139: =VLOOKUP(B139,[1]sheet1!$B$1:$G$65536,6,FALSE) -> 51.77 | F139: 轻载 | G139: 303.37 | H139: 否 | I139: 腾冲市-腾越街道-朝阳社区
A140: 138 | B140: DS-朝阳社区-刘晓寨台变 | C140: 10kV | D140: 23.45 | E140: 34.52 | F140: 轻载 | G140: 465.48 | H140: 否 | I140: 腾冲市-腾越街道-朝阳社区
A141: 139 | B141: DS-朝阳社区-毛家村1#台变 | C141: 10kV | D141: =VLOOKUP(B141,[1]sheet1!$B$1:$I$65536,8,FALSE) -> 13.98 | E141: =VLOOKUP(B141,[1]sheet1!$B$1:$G$65536,6,FALSE) -> 25.78 | F141: 轻载 | G141: 236.02 | H141: 否 | I141: 腾冲市-腾越街道-朝阳社区
A142: 140 | B142: DS-朝阳社区-毛家村2#台变 | C142: 10kV | D142: =VLOOKUP(B142,[1]sheet1!$B$1:$I$65536,8,FALSE) -> 11.57 | E142: =VLOOKUP(B142,[1]sheet1!$B$1:$G$65536,6,FALSE) -> 19.4 | F142: 轻载 | G142: 238.43 | H142: 否 | I142: 腾冲市-腾越街道-朝阳社区
A143: 141 | B143: DS-朝阳社区-倪家堡1#台变 | C143: 10kV | D143: =VLOOKUP(B143,[1]sheet1!$B$1:$I$65536,8,FALSE) -> 16.41 | E143: =VLOOKUP(B143,[1]sheet1!$B$1:$G$65536,6,FALSE) -> 30.43 | F143: 轻载 | G143: 298.59 | H143: 否 | I143: 腾冲市-腾越街道-朝阳社区
A144: 142 | B144: DS-朝阳社区-倪家堡2#台变 | C144: 10kV | D144: =VLOOKUP(B144,[1]sheet1!$B$1:$I$65536,8,FALSE) -> 21.03 | E144: =VLOOKUP(B144,[1]sheet1!$B$1:$G$65536,6,FALSE) -> 41.99 | F144: 轻载 | G144: 293.97 | H144: 否 | I144: 腾冲市-腾越街道-朝阳社区
A145: 143 | B145: DS-朝阳社区-韦家村台变 | C145: 10kV | D145: =VLOOKUP(B145,[1]sheet1!$B$1:$I$65536,8,FALSE) -> 26.12 | E145: =VLOOKUP(B145,[1]sheet1!$B$1:$G$65536,6,FALSE) -> 71.09 | F145: 轻载 | G145: 473.88 | H145: 否 | I145: 腾冲市-腾越街道-朝阳社区
A146: 144 | B146: DS-东山社区-后董库台变 | C146: 10kV | D146: =VLOOKUP(B146,[1]sheet1!$B$1:$I$65536,8,FALSE) -> 24.42 | E146: =VLOOKUP(B146,[1]sheet1!$B$1:$G$65536,6,FALSE) -> 50.6 | F146: 轻载 | G146: 225.58 | H146: 否 | I146: 腾冲市-腾越街道-东山社区
A147: 145 | B147: DS-东升社区-前董库2#台变 | C147: 10kV | D147: =VLOOKUP(B147,[1]sheet1!$B$1:$I$65536,8,FALSE) -> 21.75 | E147: =VLOOKUP(B147,[1]sheet1!$B$1:$G$65536,6,FALSE) -> 39.67 | F147: 轻载 | G147: 378.25 | H147: 否 | I147: 腾冲市-腾越街道-东山社区
A148: 146 | B148: DS-东升社区-尚家寨1#台变 | C148: 10kV | D148: =VLOOKUP(B148,[1]sheet1!$B$1:$I$65536,8,FALSE) -> 14.58 | E148: =VLOOKUP(B148,[1]sheet1!$B$1:$G$65536,6,FALSE) -> 25.14 | F148: 轻载 | G148: 300.42 | H148: 否 | I148: 腾冲市-腾越街道-东山社区
A149: 147 | B149: DS-东升社区-尚家寨2#台变 | C149: 10kV | D149: =VLOOKUP(B149,[1]sheet1!$B$1:$I$65536,8,FALSE) -> 11.42 | E149: =VLOOKUP(B149,[1]sheet1!$B$1:$G$65536,6,FALSE) -> 23.06 | F149: 轻载 | G149: 303.58 | H149: 否 | I149: 腾冲市-腾越街道-东山社区
A150: 148 | B150: DS-洞坪社区-草庙台变 | C150: 10kV | D150: =VLOOKUP(B150,[1]sheet1!$B$1:$I$65536,8,FALSE) -> 24.79 | E150: =VLOOKUP(B150,[1]sheet1!$B$1:$G$65536,6,FALSE) -> 46.47 | F150: 轻载 | G150: 225.21 | H150: 否 | I150: 腾冲市-腾越街道-洞坪社区
A151: 149 | B151: DS-洞坪社区-何家寨台变 | C151: 10kV | D151: =VLOOKUP(B151,[1]sheet1!$B$1:$I$65536,8,FALSE) -> 15.04 | E151: =VLOOKUP(B151,[1]sheet1!$B$1:$G$65536,6,FALSE) -> 31.58 | F151: 轻载 | G151: 109.96 | H151: 否 | I151: 腾冲市-腾越街道-洞坪社区
A152: 150 | B152: DS-洞坪社区-山后安置地台变 | C152: 10kV | D152: =VLOOKUP(B152,[1]sheet1!$B$1:$I$65536,8,FALSE) -> 17.92 | E152: =VLOOKUP(B152,[1]sheet1!$B$1:$G$65536,6,FALSE) -> 30.64 | F152: 轻载 | G152: 232.08 | H152: 否 | I152: 腾冲市-腾越街道-洞坪社区
A153: 151 | B153: DS-洞坪社区-山后台变 | C153: 10kV | D153: =VLOOKUP(B153,[1]sheet1!$B$1:$I$65536,8,FALSE) -> 9.6 | E153: =VLOOKUP(B153,[1]sheet1!$B$1:$G$65536,6,FALSE) -> 26.05 | F153: 轻载 | G153: 150.40 | H153: 否 | I153: 腾冲市-腾越街道-洞坪社区
A154: 152 | B154: DS-洞坪社区-山面1#台变 | C154: 10kV | D154: =VLOOKUP(B154,[1]sheet1!$B$1:$I$65536,8,FALSE) -> 12.32 | E154: =VLOOKUP(B154,[1]sheet1!$B$1:$G$65536,6,FALSE) -> 38.08 | F154: 轻载 | G154: 187.68 | H154: 否 | I154: 腾冲市-腾越街道-洞坪社区
A155: 153 | B155: DS-洞坪社区-山面2#台变 | C155: 10kV | D155: =VLOOKUP(B155,[1]sheet1!$B$1:$I$65536,8,FALSE) -> 7.45 | E155: =VLOOKUP(B155,[1]sheet1!$B$1:$G$65536,6,FALSE) -> 17.55 | F155: 轻载 | G155: 307.55 | H155: 否 | I155: 腾冲市-腾越街道-洞坪社区
A156: 154 | B156: DS-洞坪社区-团山台变 | C156: 10kV | D156: =VLOOKUP(B156,[1]sheet1!$B$1:$I$65536,8,FALSE) -> 20.88 | E156: =VLOOKUP(B156,[1]sheet1!$B$1:$G$65536,6,FALSE) -> 36.93 | F156: 轻载 | G156: 229.12 | H156: 否 | I156: 腾冲市-腾越街道-洞坪社区
A157: 155 | B157: DS-洞坪社区-长洞1#台变 | C157: 10kV | D157: =VLOOKUP(B157,[1]sheet1!$B$1:$I$65536,8,FALSE) -> 8.58 | E157: =VLOOKUP(B157,[1]sheet1!$B$1:$G$65536,6,FALSE) -> 18.68 | F157: 轻载 | G157: 306.42 | H157: 否 | I157: 腾冲市-腾越街道-洞坪社区
A158: 156 | B158: DS-洞坪社区-长洞2#台变 | C158: 10kV | D158: =VLOOKUP(B158,[1]sheet1!$B$1:$I$65536,8,FALSE) -> 11.6 | E158: =VLOOKUP(B158,[1]sheet1!$B$1:$G$65536,6,FALSE) -> 21.98 | F158: 轻载 | G158: 148.40 | H158: 否 | I158: 腾冲市-腾越街道-洞坪社区
A159: 157 | B159: DS-洞山社区-钏家湾台变 | C159: 10kV | D159: =VLOOKUP(B159,[1]sheet1!$B$1:$I$65536,8,FALSE) -> 11.75 | E159: =VLOOKUP(B159,[1]sheet1!$B$1:$G$65536,6,FALSE) -> 28.09 | F159: 轻载 | G159: 388.25 | H159: 否 | I159: 腾冲市-腾越街道-洞山社区
A160: 158 | B160: DS-洞山社区-龙井1台变 | C160: 10kV | D160: =VLOOKUP(B160,[1]sheet1!$B$1:$I$65536,8,FALSE) -> 8.45 | E160: =VLOOKUP(B160,[1]sheet1!$B$1:$G$65536,6,FALSE) -> 22.47 | F160: 轻载 | G160: 306.55 | H160: 否 | I160: 腾冲市-腾越街道-洞山社区
A161: 159 | B161: DS-洞山社区-龙井2台变 | C161: 10kV | D161: =VLOOKUP(B161,[1]sheet1!$B$1:$I$65536,8,FALSE) -> 12.47 | E161: =VLOOKUP(B161,[1]sheet1!$B$1:$G$65536,6,FALSE) -> 24.84 | F161: 轻载 | G161: 302.53 | H161: 否 | I161: 腾冲市-腾越街道-洞山社区
A162: 160 | B162: DS-洞山社区-新街子1#台变 | C162: 10kV | D162: =VLOOKUP(B162,[1]sheet1!$B$1:$I$65536,8,FALSE) -> 44.79 | E162: =VLOOKUP(B162,[1]sheet1!$B$1:$G$65536,6,FALSE) -> 70.59 | F162: 经济运行 | G162: 355.21 | H162: 否 | I162: 腾冲市-腾越街道-洞山社区
A163: 161 | B163: DS-洞山社区-新街子2#台变 | C163: 10kV | D163: =VLOOKUP(B163,[1]sheet1!$B$1:$I$65536,8,FALSE) -> 26.73 | E163: =VLOOKUP(B163,[1]sheet1!$B$1:$G$65536,6,FALSE) -> 43.08 | F163: 轻载 | G163: 288.27 | H163: 否 | I163: 腾冲市-腾越街道-洞山社区
A164: 162 | B164: DS-黄坡社区-大滚塘台变 | C164: 10kV | D164: =VLOOKUP(B164,[1]sheet1!$B$1:$I$65536,8,FALSE) -> 11.07 | E164: =VLOOKUP(B164,[1]sheet1!$B$1:$G$65536,6,FALSE) -> 28.36 | F164: 轻载 | G164: 88.93 | H164: 否 | I164: 腾冲市-腾越街道-黄坡社区
A165: 163 | B165: DS-黄坡社区-大中吴邑台变 | C165: 10kV | D165: =VLOOKUP(B165,[1]sheet1!$B$1:$I$65536,8,FALSE) -> 11.56 | E165: =VLOOKUP(B165,[1]sheet1!$B$1:$G$65536,6,FALSE) -> 24.26 | F165: 轻载 | G165: 388.44 | H165: 否 | I165: 腾冲市-腾越街道-黄坡社区
A166: 164 | B166: DS-黄坡社区-下村台变 | C166: 10kV | D166: =VLOOKUP(B166,[1]sheet1!$B$1:$I$65536,8,FALSE) -> 7.51 | E166: =VLOOKUP(B166,[1]sheet1!$B$1:$G$65536,6,FALSE) -> 16.32 | F166: 轻载 | G166: 307.49 | H166: 否 | I166: 腾冲市-腾越街道-黄坡社区
A167: 165 | B167: DS-黄坡社区-小河底台变 | C167: 10kV | D167: =VLOOKUP(B167,[1]sheet1!$B$1:$I$65536,8,FALSE) -> 9.53 | E167: =VLOOKUP(B167,[1]sheet1!$B$1:$G$65536,6,FALSE) -> 19.56 | F167: 轻载 | G167: 390.47 | H167: 否 | I167: 腾冲市-腾越街道-黄坡社区
A168: 166 | B168: DS-黄坡社区-小吴邑台变 | C168: 10kV | D168: =VLOOKUP(B168,[1]sheet1!$B$1:$I$65536,8,FALSE) -> 17.17 | E168: =VLOOKUP(B168,[1]sheet1!$B$1:$G$65536,6,FALSE) -> 30.7 | F168: 轻载 | G168: 232.83 | H168: 否 | I168: 腾冲市-腾越街道-黄坡社区
A169: 167 | B169: DS-沙坝社区-河外台变 | C169: 10kV | D169: =VLOOKUP(B169,[1]sheet1!$B$1:$I$65536,8,FALSE) -> 7.82 | E169: =VLOOKUP(B169,[1]sheet1!$B$1:$G$65536,6,FALSE) -> 16.5 | F169: 轻载 | G169: 307.18 | H169: 否 | I169: 腾冲市-腾越街道-沙坝社区
A170: 168 | B170: DS-沙坝社区-上中村台变 | C170: 10kV | D170: =VLOOKUP(B170,[1]sheet1!$B$1:$I$65536,8,FALSE) -> 12.71 | E170: =VLOOKUP(B170,[1]sheet1!$B$1:$G$65536,6,FALSE) -> 23.26 | F170: 轻载 | G170: 302.29 | H170: 否 | I170: 腾冲市-腾越街道-沙坝社区
A171: 169 | B171: DS-沙坝社区-新沙坝台变 | C171: 10kV | D171: =VLOOKUP(B171,[1]sheet1!$B$1:$I$65536,8,FALSE) -> 10.21 | E171: =VLOOKUP(B171,[1]sheet1!$B$1:$G$65536,6,FALSE) -> 20.72 | F171: 轻载 | G171: 189.79 | H171: 否 | I171: 腾冲市-腾越街道-沙坝社区
A172: 170 | B172: DS-沙坝社区-庄烟台变 | C172: 10kV | D172: =VLOOKUP(B172,[1]sheet1!$B$1:$I$65536,8,FALSE) -> 13.28 | E172: =VLOOKUP(B172,[1]sheet1!$B$1:$G$65536,6,FALSE) -> 42.12 | F172: 轻载 | G172: 301.72 | H172: 否 | I172: 腾冲市-腾越街道-沙坝社区
A173: 171 | B173: DS-永乐社区-大寨子台变 | C173: 10kV | D173: =VLOOKUP(B173,[1]sheet1!$B$1:$I$65536,8,FALSE) -> 24.6 | E173: =VLOOKUP(B173,[1]sheet1!$B$1:$G$65536,6,FALSE) -> 40.21 | F173: 轻载 | G173: 225.40 | H173: 否 | I173: 腾冲市-腾越街道-永乐社区
A174: 172 | B174: DS-永乐社区-关坡脚1#台变 | C174: 10kV | D174: =VLOOKUP(B174,[1]sheet1!$B$1:$I$65536,8,FALSE) -> 12.71 | E174: =VLOOKUP(B174,[1]sheet1!$B$1:$G$65536,6,FALSE) -> 35.64 | F174: 轻载 | G174: 87.29 | H174: 否 | I174: 腾冲市-腾越街道-永乐社区
A175: 173 | B175: DS-永乐社区-关坡脚2#台变 | C175: 10kV | D175: 11.23 | E175: 15.32 | F175: 轻载 | G175: 66.12 | H175: 否 | I175: 腾冲市-腾越街道-永乐社区
A176: 174 | B176: DS-永乐社区-刘家寨台变 | C176: 10kV | D176: =VLOOKUP(B176,[1]sheet1!$B$1:$I$65536,8,FALSE) -> 21.35 | E176: =VLOOKUP(B176,[1]sheet1!$B$1:$G$65536,6,FALSE) -> 35.15 | F176: 轻载 | G176: 293.65 | H176: 否 | I176: 腾冲市-腾越街道-永乐社区
A177: 175 | B177: DS-永乐社区-任家寨台变 | C177: 10kV | D177: =VLOOKUP(B177,[1]sheet1!$B$1:$I$65536,8,FALSE) -> 27.32 | E177: =VLOOKUP(B177,[1]sheet1!$B$1:$G$65536,6,FALSE) -> 44.08 | F177: 轻载 | G177: 222.68 | H177: 否 | I177: 腾冲市-腾越街道-永乐社区
A178: 176 | B178: DS-玉璧社区-芹菜塘台变 | C178: 10kV | D178: =VLOOKUP(B178,[1]sheet1!$B$1:$I$65536,8,FALSE) -> 8.47 | E178: =VLOOKUP(B178,[1]sheet1!$B$1:$G$65536,6,FALSE) -> 13.5 | F178: 轻载 | G178: 306.53 | H178: 否 | I178: 腾冲市-腾越街道-玉璧社区
A179: 177 | B179: DS-玉璧社区-玉壁1#台变 | C179: 10kV | D179: =VLOOKUP(B179,[1]sheet1!$B$1:$I$65536,8,FALSE) -> 17.46 | E179: =VLOOKUP(B179,[1]sheet1!$B$1:$G$65536,6,FALSE) -> 36.15 | F179: 轻载 | G179: 232.54 | H179: 否 | I179: 腾冲市-腾越街道-玉璧社区
A180: 178 | B180: DS-玉璧社区-玉壁2#台变 | C180: 10kV | D180: =VLOOKUP(B180,[1]sheet1!$B$1:$I$65536,8,FALSE) -> 17.6 | E180: =VLOOKUP(B180,[1]sheet1!$B$1:$G$65536,6,FALSE) -> 32.08 | F180: 轻载 | G180: 297.40 | H180: 否 | I180: 腾冲市-腾越街道-玉璧社区
A181: 179 | B181: DS-玉璧社区-玉壁3#台变 | C181: 10kV | D181: =VLOOKUP(B181,[1]sheet1!$B$1:$I$65536,8,FALSE) -> 17.63 | E181: =VLOOKUP(B181,[1]sheet1!$B$1:$G$65536,6,FALSE) -> 27.94 | F181: 轻载 | G181: 297.37 | H181: 否 | I181: 腾冲市-腾越街道-玉璧社区
A182: 180 | B182: DS-玉璧社区-玉壁4#台变 | C182: 10kV | D182: =VLOOKUP(B182,[1]sheet1!$B$1:$I$65536,8,FALSE) -> 14.38 | E182: =VLOOKUP(B182,[1]sheet1!$B$1:$G$65536,6,FALSE) -> 26.85 | F182: 轻载 | G182: 235.62 | H182: 否 | I182: 腾冲市-腾越街道-玉璧社区
A183: 181 | B183: ML-寸家寨社区-寸家寨1#台变 | C183: 10kV | D183: =VLOOKUP(B183,[1]sheet1!$B$1:$I$65536,8,FALSE) -> 11.2 | E183: =VLOOKUP(B183,[1]sheet1!$B$1:$G$65536,6,FALSE) -> 32.35 | F183: 轻载 | G183: 303.80 | H183: 否 | I183: 腾冲市-腾越街道-寸家寨社区
A184: 182 | B184: ML-寸家寨社区-寸家寨2#台变 | C184: 10kV | D184: =VLOOKUP(B184,[1]sheet1!$B$1:$I$65536,8,FALSE) -> 8.77 | E184: =VLOOKUP(B184,[1]sheet1!$B$1:$G$65536,6,FALSE) -> 21.2 | F184: 轻载 | G184: 151.23 | H184: 否 | I184: 腾冲市-腾越街道-寸家寨社区
A185: 183 | B185: ML-寸家寨社区-高田台变 | C185: 10kV | D185: =VLOOKUP(B185,[1]sheet1!$B$1:$I$65536,8,FALSE) -> 6.49 | E185: =VLOOKUP(B185,[1]sheet1!$B$1:$G$65536,6,FALSE) -> 13.92 | F185: 轻载 | G185: 243.51 | H185: 否 | I185: 腾冲市-腾越街道-寸家寨社区
A186: 184 | B186: ML-寸家寨社区-小地坡台变 | C186: 10kV | D186: =VLOOKUP(B186,[1]sheet1!$B$1:$I$65536,8,FALSE) -> 8.82 | E186: =VLOOKUP(B186,[1]sheet1!$B$1:$G$65536,6,FALSE) -> 24.08 | F186: 轻载 | G186: 151.18 | H186: 否 | I186: 腾冲市-腾越街道-寸家寨社区
A187: 185 | B187: ML-勐连街社区-陈家寨台变 | C187: 10kV | D187: =VLOOKUP(B187,[1]sheet1!$B$1:$I$65536,8,FALSE) -> 6.26 | E187: =VLOOKUP(B187,[1]sheet1!$B$1:$G$65536,6,FALSE) -> 14.63 | F187: 轻载 | G187: 193.74 | H187: 否 | I187: 腾冲市-腾越街道-勐连街社区
A188: 186 | B188: ML-勐连街社区-何家寨台变 | C188: 10kV | D188: =VLOOKUP(B188,[1]sheet1!$B$1:$I$65536,8,FALSE) -> 6.66 | E188: =VLOOKUP(B188,[1]sheet1!$B$1:$G$65536,6,FALSE) -> 19.08 | F188: 轻载 | G188: 118.34 | H188: 否 | I188: 腾冲市-腾越街道-勐连街社区
A189: 187 | B189: ML-勐连街社区-栗柴坝台变 | C189: 10kV | D189: =VLOOKUP(B189,[1]sheet1!$B$1:$I$65536,8,FALSE) -> 6.79 | E189: =VLOOKUP(B189,[1]sheet1!$B$1:$G$65536,6,FALSE) -> 22.65 | F189: 轻载 | G189: 118.21 | H189: 否 | I189: 腾冲市-腾越街道-勐连街社区
A190: 188 | B190: ML-勐连街社区-勐连集镇台变 | C190: 10kV | D190: =VLOOKUP(B190,[1]sheet1!$B$1:$I$65536,8,FALSE) -> 21.06 | E190: =VLOOKUP(B190,[1]sheet1!$B$1:$G$65536,6,FALSE) -> 46.19 | F190: 轻载 | G190: 378.94 | H190: 否 | I190: 腾冲市-腾越街道-勐连街社区
A191: 189 | B191: ML-勐连街社区-下密坡台变 | C191: 10kV | D191: =VLOOKUP(B191,[1]sheet1!$B$1:$I$65536,8,FALSE) -> 6.86 | E191: =VLOOKUP(B191,[1]sheet1!$B$1:$G$65536,6,FALSE) -> 22.23 | F191: 轻载 | G191: 118.14 | H191: 否 | I191: 腾冲市-腾越街道-勐连街社区
A192: 190 | B192: ML-勐连街社区-新寨坡台变 | C192: 10kV | D192: =VLOOKUP(B192,[1]sheet1!$B$1:$I$65536,8,FALSE) -> 6.16 | E192: =VLOOKUP(B192,[1]sheet1!$B$1:$G$65536,6,FALSE) -> 16.57 | F192: 轻载 | G192: 193.84 | H192: 否 | I192: 腾冲市-腾越街道-勐连街社区
A193: 191 | B193: ML-勐连街社区-朱家寨台变 | C193: 10kV | D193: =VLOOKUP(B193,[1]sheet1!$B$1:$I$65536,8,FALSE) -> 6.09 | E193: =VLOOKUP(B193,[1]sheet1!$B$1:$G$65536,6,FALSE) -> 20.4 | F193: 轻载 | G193: 118.91 | H193: 否 | I193: 腾冲市-腾越街道-勐连街社区
A194: 192 | B194: ML-上勐连社区-关坡山台变 | C194: 10kV | D194: =VLOOKUP(B194,[1]sheet1!$B$1:$I$65536,8,FALSE) -> 21.78 | E194: =VLOOKUP(B194,[1]sheet1!$B$1:$G$65536,6,FALSE) -> 30.59 | F194: 轻载 | G194: 28.22 | H194: 否 | I194: 腾冲市-腾越街道-上勐连社区
A195: 193 | B195: ML-上勐连社区-核果树台变 | C195: 10kV | D195: =VLOOKUP(B195,[1]sheet1!$B$1:$I$65536,8,FALSE) -> 2.49 | E195: =VLOOKUP(B195,[1]sheet1!$B$1:$G$65536,6,FALSE) -> 13.06 | F195: 轻载 | G195: 47.51 | H195: 否 | I195: 腾冲市-腾越街道-上勐连社区
A196: 194 | B196: ML-上勐连社区-上寨1#台变 | C196: 10kV | D196: =VLOOKUP(B196,[1]sheet1!$B$1:$I$65536,8,FALSE) -> 15.01 | E196: =VLOOKUP(B196,[1]sheet1!$B$1:$G$65536,6,FALSE) -> 28.85 | F196: 轻载 | G196: 384.99 | H196: 否 | I196: 腾冲市-腾越街道-上勐连社区
A197: 195 | B197: ML-上勐连社区-上寨2#台变 | C197: 10kV | D197: =VLOOKUP(B197,[1]sheet1!$B$1:$I$65536,8,FALSE) -> 6.18 | E197: =VLOOKUP(B197,[1]sheet1!$B$1:$G$65536,6,FALSE) -> 14.08 | F197: 轻载 | G197: 193.82 | H197: 否 | I197: 腾冲市-腾越街道-上勐连社区
A198: 196 | B198: ML-上勐连社区-哨上1#台变 | C198: 10kV | D198: =VLOOKUP(B198,[1]sheet1!$B$1:$I$65536,8,FALSE) -> 7.86 | E198: =VLOOKUP(B198,[1]sheet1!$B$1:$G$65536,6,FALSE) -> 18.58 | F198: 轻载 | G198: 307.14 | H198: 否 | I198: 腾冲市-腾越街道-上勐连社区
A199: 197 | B199: ML-上勐连社区-哨上2#台变 | C199: 10kV | D199: =VLOOKUP(B199,[1]sheet1!$B$1:$I$65536,8,FALSE) -> 4.93 | E199: =VLOOKUP(B199,[1]sheet1!$B$1:$G$65536,6,FALSE) -> 10.19 | F199: 轻载 | G199: 75.07 | H199: 否 | I199: 腾冲市-腾越街道-上勐连社区
A200: 198 | B200: ML-上勐连社区-中岭杆台变 | C200: 10kV | D200: =VLOOKUP(B200,[1]sheet1!$B$1:$I$65536,8,FALSE) -> 17.28 | E200: =VLOOKUP(B200,[1]sheet1!$B$1:$G$65536,6,FALSE) -> 40.99 | F200: 轻载 | G200: 12.72 | H200: 否 | I200: 腾冲市-腾越街道-上勐连社区
... 1846 more rows
